Cogmind - Beta 14 @@@ ROGUE MODE // 2024.09.08 @ 19:49:53 Player: rice Result: Destroyed by D-53 Grenadier with Mini Grenade Launcher Performance ------------- Evolutions (0) 0 Regions Visited (2) 400 Robots Destroyed (24) 120 Value Destroyed (558) 558 Prototype IDs (0) 0 Alien Tech Used (0) 0 Bonus (-174) -174 TOTAL SCORE: 904 Bonus ------- Friendly Fire -174 Cogmind --------- Core Integrity 0/250 Matter 260/300 Energy 100/100 System Corruption 0% Temperature Cool (0) Movement Core (200) Ox3 Location -10/Mines Parts ------- > --- POWER (1) -------- (None) > --- PROPULSION (2) --- (None) > --- UTILITY (2) ------ Medium Storage Unit Structural Scanner > --- WEAPON (2) ------- (None) > --- INVENTORY (10) --- Ion Engine Light Ion Engine Structural Scanner Seismic Detector Utility Shielding Light Armor Plating Hacking Suite Assault Rifle Mining Laser Peak State ------------ > --- POWER ------------ Light Nuclear Core > --- PROPULSION ------- Light Treads Light Treads > --- UTILITY ---------- Medium Storage Unit Structural Scanner > --- WEAPON ----------- Assault Rifle Grenade Launcher > --- INVENTORY -------- Ion Engine Light Ion Engine Structural Scanner Seismic Detector Utility Shielding Light Armor Plating Hacking Suite Assault Rifle Grenade Launcher Mining Laser [Rating: 10] Favorites ----------- Power Ion Engine Engine Ion Engine Power Core Light Nuclear Core Propulsion Light Treads Treads Light Treads Utility Medium Storage Unit Device Structural Scanner Storage Medium Storage Unit Processor Signal Interpreter Weapon Assault Rifle Ballistic Gun Assault Rifle Launcher Grenade Launcher Build | -11 -10 -10 ------- Run | Yrd Mat Min Slots Evolved . | . . . Power . | . . . Propulsion . | . . . Utility . | . . . Weapon . | . . . Parts Attached 17 | 6 9 2 Power 3 | 1 1 1 Engine 2 | 1 1 . Core 1 | . . 1 Reactor . | . . . Propulsion 4 | 2 2 . Treads 4 | 2 2 . Leg . | . . . Wheel . | . . . Hover . | . . . Flight . | . . . Utility 4 | 1 3 . Device 1 | . 1 . Storage 2 | 1 1 . Processor 1 | . 1 . Hackware . | . . . Protection . | . . . Artifact . | . . . Weapon 6 | 2 3 1 Energy Gun . | . . . Energy Cannon . | . . . Ballistic Gun 3 | 2 1 . Ballistic Cannon . | . . . Launcher 3 | . 2 1 Special Weapon . | . . . Impact Weapon . | . . . Slashing Weapon . | . . . Piercing Weapon . | . . . Special Melee Weapon . | . . . Unidentified Prototypes . | . . . Parts Lost 6 | . . 6 Power 1 | . . 1 Propulsion 2 | . . 2 Utility . | . . . Weapon 3 | . . 3 Highest Loss Streak 6 | . . 6 To Critical Strikes . | . . . Average Slot Usage (%) 95 | . 95 95 Engine 13 | . 14 10 Treads 27 | . 27 27 Device 8 | . 7 14 Storage 14 | . 14 14 Processor 2 | . 2 . Ballistic Gun 21 | . 23 12 Launcher 6 | . 4 13 Peak Build Rating 10 | 6 8 10 Average Rating 6 | 4 6 8 On Entrance 4 | . 6 8 Naked Turns . | . . . Heaviest Build 25 | 14 25 21 Greatest Support 40 | 40 40 40 Greatest Overweight (x) . | . . . Average Overweight (x) . | . . . Largest Inventory Capacity 10 | 8 10 10 Average Capacity 9 | 6 9 10 Most Carried 10 | 1 9 10 Average Carried 5 | . 5 8 Final Capacity 10 | 8 10 10 Final Carried 9 | 1 8 9 Class Distribution -------------------- 100% | Mutant Dominant Class ---------------- Mutant | -10/Materials Mutant | -10/Mines Resources | -11 -10 -10 ----------- Run | Yrd Mat Min Matter Collected 733 | 229 408 96 Remotely . | . . . Salvage Created 610 | . 476 134 Parts 48 | . 37 11 Haulers Intercepted . | . . . Recyclers Shooed 1 | . 1 . Parts Field Recycled . | . . . Retrieved Matter . | . . . Parts Self-Destructed . | . . . Prevented . | . . . Kills | -11 -10 -10 ------- Run | Yrd Mat Min Combat Hostiles Destroyed 29 | . 15 14 Guns 11 | . 11 . AOE 18 | . 4 14 Classes Destroyed 5 | . 4 1 Recycler 1 | . 1 . Operator 2 | . 2 . Swarmer 9 | . 6 3 Grunt 11 | . 9 2 Assembled 9 | . . 9 Thug 1 | . . 1 Best Kill Streak 9 | . 6 9 Combat Bots Only 9 | . 6 9 Max Kills in Single Turn 5 | . 2 5 Gunslinging 1 | . 1 . Exploded 5 | . 1 5 Melee . | . . . Uniques/NPCs Destroyed . | . . . Combat | -11 -10 -10 -------- Run | Yrd Mat Min Hostile Shots Fired 85 | . 49 36 Missed 22 | . 11 11 Damage Taken 1118 | . 408 710 Core 251 | . 72 179 Absorbed by Shields . | . . . Regen/Repaired (Parts) 142 | . 142 . Core Remaining (%) 100 | 100 . . Volleys Fired 67 | . 56 11 Largest 2 | . 2 1 Hottest 50 | . 50 30 Shots Fired 91 | . 80 11 Gun 67 | . 67 . Cannon . | . . . Launcher 24 | . 13 11 Special . | . . . Kinetic 67 | . 67 . Thermal . | . . . Explosive 24 | . 13 11 Electromagnetic . | . . . Robot Hit Streak 8 | . 8 2 Robot Miss Streak 3 | . 3 2 Penetration Max . | . . . Secondary Targets 1 | . 1 . Max Gunslinging Chain 1 | . 1 . Shots Hit Robots 43 | . 40 3 Core Hits 60 | . 30 30 Critical Kills . | . . . Critical Parts Destroyed 1 | . 1 . Critical Strikes 1 | . 1 . Destroy 1 | . 1 . Melee Attacks . | . . . Impact . | . . . Slashing . | . . . Piercing . | . . . Sneak Attacks . | . . . Combat Hostiles . | . . . Follow-up Attacks . | . . . Damage Inflicted 1873 | . 1016 857 Guns 506 | . 506 . Cannons . | . . . Explosions 1358 | . 501 857 Melee . | . . . Ramming 9 | . 9 . Kinetic 506 | . 506 . Thermal . | . . . Explosive 1358 | . 501 857 Electromagnetic . | . . . Impact . | . . . Slashing . | . . . Piercing . | . . . Highest Corruption . | . . . Average Corruption . | . . . Corruption Purged . | . . . Corruption Blocked . | . . . Overload Shots . | . . . Overflow Damage 42 | . 9 33 Projectiles . | . . . Explosions 42 | . 9 33 Melee . | . . . Knockbacks 1 | . 1 . Impact 1 | . 1 . Kinetic . | . . . Secondary . | . . . Self-Inflicted Damage 140 | . 10 130 Shots 6 | . 1 5 Rammed 3 | . 3 . Targets Rammed 3 | . 3 . Kicked . | . . . Crushed . | . . . Highest Temperature 15 | . 4 15 Average Temperature 6 | . 3 12 Received Heat Transfer 195 | . 165 30 Siege Activations . | . . . Robots Corrupted . | . . . Combat Hostiles . | . . . Parts Fried . | . . . Impact Corruptions . | . . . Robots Melted . | . . . Combat Hostiles . | . . . Parts Melted . | . . . Heat Transferred . | . . . Parts Sabotaged . | . . . Parts Stolen . | . . . Parts Stripped . | . . . Power Chain Reactions . | . . . Alert | -11 -10 -10 ------- Run | Yrd Mat Min Peak Influence 388 | . 388 178 Initial . | . . . Average 188 | . 212 102 Maximum Alert Level 1 | . 1 . Low Security (%) 48 | 100 37 100 Level 1 51 | . 62 . Level 2 . | . . . Level 3 . | . . . Level 4 . | . . . Level 5 . | . . . High Security . | . . . Max Security . | . . . Squads Dispatched 5 | . 5 . Investigation 3 | . 3 . Extermination . | . . . Reinforcement 2 | . 2 . Assault . | . . . Garrison . | . . . Intercept . | . . . Searches Triggered . | . . . Construction Impeded . | . . . Haulers Reinforced . | . . . Active Scanning Responses . | . . . Cargo Convoy Interrupts . | . . . Stealth | -11 -10 -10 --------- Run | Yrd Mat Min Distress Signals 3 | . 3 . Communications Jammed . | . . . Distress Signals . | . . . Times Spotted 62 | . 39 23 Peak Tracking Total 14 | . 8 14 Tactical Retreats 4 | . 3 1 Traps | -11 -10 -10 ------- Run | Yrd Mat Min Traps Triggered 1 | . 1 . Indirectly . | . . . Trap Hack Attempts . | . . . Triggered . | . . . Disarmed . | . . . Reprogrammed . | . . . Reused . | . . . Traps Extracted . | . . . Installed . | . . . Triggered . | . . . Machines | -11 -10 -10 ---------- Run | Yrd Mat Min Machines Disabled 3 | . 3 . Max in Single Turn 2 | . 2 . Machines Repaired . | . . . Machines Dismantled . | . . . Machines Sabotaged . | . . . Overloaded Fab Kills . | . . . Hacking | -11 -10 -10 --------- Run | Yrd Mat Min Machines Accessed 8 | . 8 . Terminals 6 | . 6 . Fabricators . | . . . Repair Stations 1 | . 1 . Recycling Units 1 | . 1 . Scanalyzers . | . . . Garrison Access . | . . . Total Hacks 25 | . 25 . Successful 8 | . 8 . Failed 17 | . 17 . Catastrophic 3 | . 3 . Database Lockouts . | . . . Manual 13 | . 13 . Terminals 18 | . 18 . Fabricators . | . . . Repair Stations 6 | . 6 . Recycling Units 1 | . 1 . Scanalyzers . | . . . Garrison Access . | . . . Terminal Hacks 3 | . 3 . Emergency Access Points 1 | . 1 . Alert Level 1 | . 1 . Unreport Threat 1 | . 1 . Fabricator Hacks . | . . . Repair Station Hacks 4 | . 4 . Scan Component 2 | . 2 . Repair 2 | . 2 . Recycling Unit Hacks 1 | . 1 . Report Inventory 1 | . 1 . Scanalyzer . | . . . Garrison Access Hacks . | . . . Unauthorized Hacks . | . . . Terminals . | . . . Fabricators . | . . . Repair Stations . | . . . Recycling Units . | . . . Scanalyzers . | . . . Garrison Access . | . . . Data Cores Recovered . | . . . Used . | . . . Hacking Detections 8 | . 8 . Full Trace Events 5 | . 5 . Feedback Events . | . . . Feedback Blocked . | . . . Robot Schematics Acquired . | . . . Robots Built . | . . . Authchips . | . . . Time . | . . . Total Robot Build Rating . | . . . Part Schematics Acquired . | . . . Parts Built . | . . . Authchips . | . . . Time . | . . . Total Part Build Rating . | . . . Parts Repaired 2 | . 2 . Time 52 | . 52 . Parts Recycled . | . . . Recycled Matter . | . . . Retrieved Matter . | . . . Retrieved Components . | . . . Parts Scanalyzed . | . . . Part Schematics Acquired . | . . . Parts Damaged . | . . . Bothacking | -11 -10 -10 ------------ Run | Yrd Mat Min Used RIF Installer . | . . . Robots Hacked . | . . . Non-combat . | . . . Combat . | . . . Robot Hacks Applied . | . . . Relay Couplers Released . | . . . Fabnet Peak Effective % . | . . . Robots Rewired . | . . . Allies Hacked . | . . . Hacks Repelled . | . . . Allies | -11 -10 -10 -------- Run | Yrd Mat Min Total Allies 1 | . . 1 Largest Group 1 | . . 1 Highest-Rated Group 31 | . . 31 Highest-Rated Ally 31 | . . 31 Total Orders . | . . . Ally Attacks 6 | . . 6 Total Damage 106 | . . 106 Kills 2 | . . 2 Allies Corrupted . | . . . Allies Melted . | . . . Intel | -11 -10 -10 ------- Run | Yrd Mat Min Robot Analysis Total . | . . . Derelict Logs Recovered 2 | . . 2 Drone Launches . | . . . Drone Recoveries . | . . . Exploration | -11 -10 -10 ------------- Run | Yrd Mat Min Turns Passed 2485 | 96 2038 351 Spaces Moved 1315 | 58 1058 199 Core 5 | 5 . . Treads 1310 | 53 1058 199 Legs . | . . . Wheels . | . . . Hover . | . . . Flight . | . . . Fastest Speed 50 | 50 160 160 Average Speed 159 | 150 160 160 Slowest Speed 160 | 160 160 160 Overloaded Moves . | . . . Propulsion Burnouts . | . . . Robots Hopped . | . . . Cave-ins Triggered . | . . . Exploration Rate (%) 46 | 5 94 41 Regions Visited 2 Branch Regions 1 Pre-discovered Areas 1 | . . 1 Known Exits Taken . | . . . Unknown Exits Taken 2 | 1 1 . Scrap Searched 1 | . . 1 Spaces Dug 21 | . 11 10 Terrain Destroyed 185 | . 100 85 Melee . | . . . Projectile . | . . . AOE 185 | . 100 85 Terrain Rammed . | . . . Walls Destroyed . | . . . Machines Disabled . | . . . Actions | -11 -10 -10 --------- Run | Yrd Mat Min Total 1603 | 64 1319 220 Wait 189 | . 182 7 Move 1313 | 57 1057 199 Hop . | . . . Pick Up 11 | 1 9 1 Fast Attach 9 | 6 3 . Attach 1 | . . 1 Detach . | . . . Swap 7 | . 6 1 Drop 3 | . 3 . Fire 67 | . 56 11 Melee . | . . . Ram . | . . . Kick . | . . . Crush 3 | . 3 . Escape Stasis . | . . . Rewire . | . . . Trap . | . . . Miscellaneous . | . . . Route ------- -11/Scrapyard -10/Materials (discovered 4 exits: *Mat x3 / [*Min]) -10/Mines (discovered 1 exit: Mat) History --------- Turn | Location | Event 20 | -11/Scrapyard | Discovered new exit (range 14) 97 | -11/Scrapyard | Entered Materials 307 | -10/Materials | Build established: Mutant 629 | -10/Materials | Discovered new exit (range 7) 928 | -10/Materials | Discovered new exit (range 12) 953 | -10/Materials | Identified exit to Materials 965 | -10/Materials | Discovered new exit (range 14) 1221 | -10/Materials | Repaired Lgt. Treads 1249 | -10/Materials | Repaired Lgt. Treads 1291 | -10/Materials | Discovered exit to Materials (range 3) 2135 | -10/Materials | Entered Mines 2194 | -10/Mines | Received a Mining Laser from a helpful Derelict 2417 | -10/Mines | Assembled infested the area 2424 | -10/Mines | Learned location of Recycling (-7) 2450 | -10/Mines | Core integrity fell below 50% 2462 | -10/Mines | Received a Rocket Launcher from a helpful Derelict 2468 | -10/Mines | Destroyed 9 combat bots 2485 | -10/Mines | Core integrity fell below 20% 2486 | -10/Mines | Destroyed by D-53 Grenadier with Mini Grenade Launcher Last Messages --------------- 02459_ as-91574 destroyed. 02459_ U-05 Engineer lays Concrete. 02459_ as-30472 destroyed. 02460_ GA-CR8(g): "Need a small hole in the wall? Leave that to the mining laser wimps, I say!" 02460_ The unstable cave ceiling collapses. 02461_ U-05 Engineer builds a Wall. 02462_ GA-CR8(g): "Would you like a rocket launcher? I know I would if I were you, so I'm going to lend you mine." 02462_ GA-CR8(g) slips back into the shadows. 02462_ as-46454 destroyed. 02468_ as-36968 destroyed. 02475_ Grenade Launcher destroyed. 02475_ Lgt. Treads destroyed. 02475_ R-06 Scavenger destroyed. 02480_ The unstable cave ceiling collapses. 02486_ as-72156 destroyed. 02486_ Lgt. Treads destroyed. Map ----- +----------------------------------------------------+ | | | ?????????????????????????????????????????? | | ?????????????????????????????????????????? | | ?????????????????????????????????????????? | | ?????????????????????????????????????????? | | ?????????????????????????????????????????? | | ?????????????????????????????????????????? | | ?????????????????????????????????????????? | | ?????????????????????????????????????????? | | ?????????????????????????????????????????? | | ????????????## ??????????????????????????? | | ???????????### ??????????????????????????? | | ????????###### ??????????????????????????? | | ????????##### ??????????????????????????? | | ????????## ?????????????????????????? | | ????????# ?????????????????????????? | | ??????????? |?????????????????????????? | | ??????????? =%######???????????????????? | | ???????????? ##### ???????????????????? | | ???????????## # ???????????????????? | | ???????????### ????????????????????? | | ???????????## % ?????????????????????? | | ???????????### ?????????????????????? | | ????????????### # ??????????? ????? | | ?????????????## ####??????????? ????? | | ?????????????## @ ##??????????? ?????? | | ????